Workbook

Sheet comparing 2 means
L1: 0.4
A2: Input numbers ONLY in the light blue cells | K2: for queries: | L2: Julius van der Werf, UNE
B3: Treatm. difference (prop to sigE) | D3: 0.5
B4: Type 1 error (alpha) | D4: 0.05
B5: Power requested | C5: 0.8 | E5: Number in experiment | G5: 12 | K5: this t-distrib assignes automatically a 2 tailed
A6: recalculate
A7: recalculate | C7: 295.5385437 | G7: =IF((B37-C39)>0,TDIST((B37-C39),C41,1),1-TDIST(-(B37-C39),C41,1)) -> 0.1481245509
C10: range from….…to..
A11: vary: | B11: Number in experiment | C11: =IF(B11=A43,C43,IF(B11=A44,C44,C45)) -> 0 | D11: =IF(B11=A43,D43,IF(B11=A44,D44,D45)) -> 295
E12: Effect | F12: 0.5
E13: N | F13: varied
E14: a | F14: 0.05
K21: Signifcance Threshold at | M21: =B37*C40 -> 1.136279285
K22: Mean of H1 at | M22: =D3 -> 0.5
B26: =B11 -> Number in experiment
B32: Power | C32: Number
B33: requested | C33: given | D33: Diff | E33: T1E
A34: Number | B34: =C7 -> 295.5385437 | C34: =G5 -> 12 | D34: 0.5 | E34: 0.05
A35: Power | B35: 0.99 | C35: =G7 -> 0.1481245509
A36: check | B36: =ABS(B35-C5+D34-D3+E34-D4) -> 0.19
A37: za (T-distrb TH given alpha) | B37: =TINV(D4,B41) -> 1.968093453 | C37: =TINV(D4,C41) -> 2.228138852
A38: za-DiffinSE | B38: =IF(C5<0.5,TINV(2*C5,B41),-TINV((1-C5)*2,B41)) -> -0.842849715 | C38: =IF(C5<0.5,TINV(2*C5,C41),-TINV((1-C5)*2,C41)) -> -0.8790578286
A39: DIFFinSE | B39: =B37-B38 -> 2.810943168 | C39: =D3/C40 -> 0.8660254038
A40: se | B40: =D3/B39 -> 0.1778762395 | C40: =2/SQRT(G5) -> 0.5773502692
A41: df | B41: =B34-2 -> 293.5385437 | C41: =G5-2 -> 10
A42: Variable | C42: from | D42: to | E42: increm
A43: =B3 -> Treatm. difference (prop to sigE) | C43: 0 | D43: 1 | E43: =(D43-F48)/10 -> 0.1
A44: =E5 -> Number in experiment | C44: 0 | D44: 295 | E44: =(D44-F49)/10 -> 29.5
A45: =B4 -> Type 1 error (alpha) | C45: 0.0005 | D45: 0.05 | E45: =(D45-F50)/10 -> 0.005
B46: Power
A47: =B11 -> Number in experiment | B47: =B11 -> Number in experiment
A48: 29.5 | B48: 0.2734007485
A49: 59 | B49: 0.4810185803
A50: 88.5 | B50: 0.6489510421
A51: 118 | B51: 0.7718933432
A52: 147.5 | B52: 0.8563851359
A53: 177 | B53: 0.9118845444
A54: 206.5 | B54: 0.9470863171
A55: 236 | B55: 0.9688062791
A56: 265.5 | B56: 0.9818997463
A57: 295 | B57: 0.9896441056
O74: Ho | P74: H1 | Q74: THRES | R74: HOLD
N75: mu | O75: 0 | P75: =D3 -> 0.5 | Q75: =M21 -> 1.136279285 | R75: 0
N76: SD | O76: =2/SQRT(G5) -> 0.5773502692 | P76: =O76 -> 0.5773502692 | Q76: =M21 -> 1.136279285 | R76: 1.2
N77: pi | O77: =PI() -> 3.141592654 | P77: =PI() -> 3.141592654 | R77: =MAX(O78:P208) -> 0.6909882989
K78: =O78/R$77 -> 0.0003354626279 | L78: =P78/R$77 -> 7.216780525e-06 | M78: -4 | N78: =M78*O$76 -> -2.309401077 | O78: =(1/(O$76*SQRT(2*O$77)))*EXP(-1*($N78-O$75)^2/(O$76*O$76*2)) -> 0.0002318007506 | P78: =(1/(P$76*SQRT(2*P$77)))*EXP(-1*($N78-P$75)^2/(P$76*P$76*2)) -> 4.986710899e-06
K79: =O79/R$77 -> 0.0004979554215 | L79: =P79/R$77 -> 1.168155945e-05 | M79: -3.9 | N79: =M79*O$76 -> -2.25166605 | O79: =(1/(O$76*SQRT(2*O$77)))*EXP(-1*($N79-O$75)^2/(O$76*O$76*2)) -> 0.0003440813697 | P79: 8.071820895e-06
K80: 0.0007318024189 | L80: 1.872040347e-05 | M80: -3.8 | N80: -2.193931023 | O80: 0.0005056669086 | P80: 1.293557975e-05
K81: 0.001064766237 | L81: 2.970206476e-05 | M81: -3.7 | N81: -2.136195996 | O81: 0.0007357410106 | P81: 2.05237792e-05
K82: 0.001533810679 | L82: 4.665681966e-05 | M82: -3.6 | N82: -2.078460969 | O82: 0.001059845232 | P82: 3.223931645e-05
K83: 0.002187491118 | L83: 7.256056879e-05 | M83: -3.5 | N83: -2.020725942 | O83: 0.001511530767 | P83: 5.0138504e-05
K84: 0.003088715408 | L84: 0.0001117231778 | M84: -3.4 | N84: -1.962990915 | O84: 0.002134266206 | P84: 7.719940859e-05
K85: 0.004317840008 | L85: 0.0001703110933 | M85: -3.3 | N85: -1.905255888 | O85: 0.002983576922 | P85: 0.0001176829727
K86: 0.005976022895 | L86: 0.0002570393705 | M86: -3.2 | N86: -1.847520861 | O86: 0.004129361895 | P86: 0.0001776111974
K87: 0.008188701014 | L87: 0.0003840726803 | M87: -3.1 | N87: -1.789785834 | O87: 0.005658296584 | P87: 0.000265389728
K88: 0.01110899654 | L88: 0.0005681777709 | M88: -3 | N88: -1.732050808 | O88: 0.007676186621 | P88: 0.0003926041914
K89: 0.01492078607 | L89: 0.0008321701166 | M89: -2.9 | N89: -1.674315781 | O89: 0.01031008858 | P89: 0.0005750198133
K90: 0.01984109474 | L90: 0.00120669371 | M90: -2.8 | N90: -1.616580754 | O90: 0.01370996431 | P90: 0.0008338112339
K91: 0.02612140985 | L91: 0.001732363548 | M91: -2.7 | N91: -1.558845727 | O91: 0.01804958856 | P91: 0.001197042941
K92: 0.03404745473 | L92: 0.002462283642 | M92: -2.6 | N92: -1.5011107 | O92: 0.02352639283 | P92: 0.001701409185
K93: 0.04393693362 | L93: 0.00346492771 | M93: -2.5 | N93: -1.443375673 | O93: 0.03035990703 | P93: 0.002394224504
K94: 0.05613476283 | L94: 0.004827333814 | M94: -2.4 | N94: -1.385640646 | O94: 0.03878846428 | P94: 0.003335631181
K95: 0.07100535374 | L95: 0.006658517421 | M95: -2.3 | N95: -1.327905619 | O95: 0.0490638686 | P95: 0.004600957626
K96: 0.08892161746 | L96: 0.009092950024 | M96: -2.2 | N96: -1.270170592 | O96: 0.06144379719 | P96: 0.00628312207
K97: 0.1102505253 | L97: 0.01229388435 | M97: -2.1 | N97: -1.212435565 | O97: 0.07618182294 | P97: 0.008494930231
K98: 0.1353352832 | L98: 0.01645623564 | M98: -2 | N98: -1.154700538 | O98: 0.09351509715 | P98: 0.01137106627
K99: 0.1644744566 | L99: 0.02180865723 | M99: -1.9 | N99: -1.096965511 | O99: 0.113649925 | P99: 0.01506952696
K100: 0.1978986991 | L100: 0.02861438468 | M100: -1.8 | N100: -1.039230485 | O100: 0.1367456854 | P100: 0.01977220499
K101: 0.2357460766 | L101: 0.03717037573 | M101: -1.7 | N101: -0.9814954576 | O101: 0.1628977804 | P101: 0.02568429469
K102: 0.2780373005 | L102: 0.04780425408 | M102: -1.6 | N102: -0.9237604307 | O102: 0.1921205213 | P102: 0.03303218021
K103: 0.3246524674 | L103: 0.06086858362 | M103: -1.5 | N103: -0.8660254038 | O103: 0.2243310562 | P103: 0.04205947905
K104: 0.3753110989 | L104: 0.07673206771 | M104: -1.4 | N104: -0.8082903769 | O104: 0.2593355778 | P104: 0.05302096094
K105: 0.4295573582 | L105: 0.09576739227 | M105: -1.3 | N105: -0.7505553499 | O105: 0.2968191082 | P105: 0.06617414748
K106: 0.486752256 | L106: 0.1183356164 | M106: -1.2 | N106: -0.692820323 | O106: 0.3363401134 | P106: 0.0817685263
K107: 0.5460744266 | L107: 0.1447672579 | M107: -1.1 | N107: -0.6350852961 | O107: 0.3773310392 | P107: 0.1000324813
K108: 0.6065306597 | L108: 0.1753405136 | M108: -1 | N108: -0.5773502692 | O108: 0.4191055888 | P108: 0.1211582432
K109: 0.6669768109 | L109: 0.2102573834 | M109: -0.9 | N109: -0.5196152423 | O109: 0.460873172 | P109: 0.1452853917
K110: 0.7261490371 | L110: 0.2496188004 | M110: -0.8 | N110: -0.4618802154 | O110: 0.5017604879 | P110: 0.1724836703
K111: 0.7827045382 | L111: 0.293400185 | M111: -0.7 | N111: -0.4041451884 | O111: 0.5408396775 | P111: 0.2027360948
K112: 0.8352702114 | L112: 0.3414290975 | M112: -0.6 | N112: -0.3464101615 | O112: 0.5771619425 | P112: 0.2359235113
K113: 0.8824969026 | L113: 0.3933668264 | M113: -0.5 | N113: -0.2886751346 | O113: 0.6097950335 | P113: 0.2718118743
K114: 0.9231163464 | L114: 0.4486957843 | M114: -0.4 | N114: -0.2309401077 | O114: 0.6378625939 | P114: 0.3100435367
K115: 0.9559974818 | L115: 0.5067144641 | M115: -0.3 | N115: -0.1732050808 | O115: 0.6605830738 | P115: 0.3501337656
K116: 0.9801986733 | L116: 0.5665414227 | M116: -0.2 | N116: -0.1154700538 | O116: 0.6773058139 | P116: 0.391473494
K117: 0.9950124792 | L117: 0.6271292995 | M117: -0.1 | N117: -0.05773502692 | O117: 0.6875419804 | P117: 0.4333390078
K118: 1 | L118: 0.6872892788 | M118: 0 | N118: 0 | O118: 0.6909882989 | P118: 0.4749088496
K119: 0.9950124792 | L119: 0.7457256859 | M119: 0.1 | N119: 0.05773502692 | O119: 0.6875419804 | P119: 0.5152877232
K120: 0.9801986733 | L120: 0.8010796335 | M120: 0.2 | N120: 0.1154700538 | O120: 0.6773058139 | P120: 0.5535366533
K121: 0.9559974818 | L121: 0.8519798703 | M121: 0.3 | N121: 0.1732050808 | O121: 0.6605830738 | P121: 0.5887081213
K122: 0.9231163464 | L122: 0.8970982972 | M122: 0.4 | N122: 0.2309401077 | O122: 0.6378625939 | P122: 0.6198844264
K123: 0.8824969026 | L123: 0.9352070802 | M123: 0.5 | N123: 0.2886751346 | O123: 0.6097950335 | P123: 0.6462171495
K124: 0.8352702114 | L124: 0.9652339636 | M124: 0.6 | N124: 0.3464101615 | O124: 0.5771619425 | P124: 0.6669653746
K125: 0.7827045382 | L125: 0.9863123226 | M125: 0.7 | N125: 0.4041451884 | O125: 0.5408396775 | P125: 0.681530274
K126: 0.7261490371 | L126: 0.9978226968 | M126: 0.8 | N126: 0.4618802154 | O126: 0.5017604879 | P126: 0.6894838079
K127: 0.6669768109 | L127: 0.9994230299 | M127: 0.9 | N127: 0.5196152423 | O127: 0.460873172 | P127: 0.6905896194
K128: 0.6065306597 | L128: 0.9910655553 | M128: 1 | N128: 0.5773502692 | O128: 0.4191055888 | P128: 0.6848147022
K129: 0.5460744266 | L129: 0.9729991642 | M129: 1.1 | N129: 0.6350852961 | O129: 0.3773310392 | P129: 0.6723310373
K130: 0.486752256 | L130: 0.9457570932 | M130: 1.2 | N130: 0.692820323 | O130: 0.3363401134 | P130: 0.653507085
K131: 0.4295573582 | L131: 0.9101307804 | M131: 1.3 | N131: 0.7505553499 | O131: 0.2968191082 | P131: 0.6288897198
K132: 0.3753110989 | L132: 0.8671316791 | M132: 1.4 | N132: 0.8082903769 | O132: 0.2593355778 | P132: 0.5991778439
K133: 0.3246524674 | L133: 0.8179435993 | M133: 1.5 | N133: 0.8660254038 | O133: 0.2243310562 | P133: 0.5651894563
K134: 0.2780373005 | L134: 0.7638687071 | M134: 1.6 | N134: 0.9237604307 | O134: 0.1921205213 | P134: 0.5278243385
K135: 0.2357460766 | L135: 0.7062706108 | M135: 1.7 | N135: 0.9814954576 | O135: 0.1628977804 | P135: 0.4880247279
K136: 0.1978986991 | L136: 0.6465179779 | M136: 1.8 | N136: 1.039230485 | O136: 0.1367456854 | P136: 0.4467363578
K137: 0.1644744566 | L137: 0.5859318853 | M137: 1.9 | N137: 1.096965511 | O137: 0.113649925 | P137: 0.4048720767
K138: 0.1353352832 | L138: 0.5257396281 | M138: 2 | N138: 1.154700538 | O138: 0.09351509715 | P138: 0.3632799313
K139: 0.1102505253 | L139: 0.4670370669 | M139: 2.1 | N139: 1.212435565 | O139: 0.07618182294 | P139: 0.3227171484
K140: 0.08892161746 | L140: 0.4107608482 | M140: 2.2 | N140: 1.270170592 | O140: 0.06144379719 | P140: 0.2838309398
K141: 0.07100535374 | L141: 0.3576710494 | M141: 2.3 | N141: 1.327905619 | O141: 0.0490638686 | P141: 0.24714651
K142: 0.05613476283 | L142: 0.3083440633 | M142: 2.4 | N142: 1.385640646 | O142: 0.03878846428 | P142: 0.2130621398
K143: =O143/R$77 -> 0.04393693362 | L143: =P143/R$77 -> 0.263174889 | M143: 2.5 | N143: =M143*O$76 -> 1.443375673 | O143: =(1/(O$76*SQRT(2*O$77)))*EXP(-1*($N143-O$75)^2/(O$76*O$76*2)) -> 0.03035990703 | P143: 0.1818507689
K144: 0.03404745473 | L144: 0.222387494 | M144: 2.6 | N144: 1.5011107 | O144: 0.02352639283 | P144: 0.1536671562
K145: 0.02612140985 | L145: 0.1860515655 | M145: 2.7 | N145: 1.558845727 | O145: 0.01804958856 | P145: 0.1285594548
K146: 0.01984109474 | L146: 0.1541038013 | M146: 2.8 | N146: 1.616580754 | O146: 0.01370996431 | P146: 0.1064839235
K147: 0.01492078607 | L147: 0.1263718751 | M147: 2.9 | N147: 1.674315781 | O147: 0.01031008858 | P147: 0.08732148702
K148: 0.01110899654 | L148: 0.102599339 | M148: 3 | N148: 1.732050808 | O148: 0.007676186621 | P148: 0.07089494274
K149: 0.008188701014 | L149: 0.08246995381 | M149: 3.1 | N149: 1.789785834 | O149: 0.005658296584 | P149: 0.05698577309
K150: 0.005976022895 | L150: 0.06563024038 | M150: 3.2 | N150: 1.847520861 | O150: 0.004129361895 | P150: 0.04534972816
K151: 0.004317840008 | L151: 0.05170937561 | M151: 3.3 | N151: 1.905255888 | O151: 0.002983576922 | P151: 0.03573057349
K152: 0.003088715408 | L152: 0.04033589034 | M152: 3.4 | N152: 1.962990915 | O152: 0.002134266206 | P152: 0.02787162825
K153: 0.002187491118 | L153: 0.03115093286 | M153: 3.5 | N153: 2.020725942 | O153: 0.001511530767 | P153: 0.02152493011
K154: 0.001533810679 | L154: 0.02381812231 | M154: 3.6 | N154: 2.078460969 | O154: 0.001059845232 | P154: 0.01645804382
K155: 0.001064766237 | L155: 0.01803022061 | M155: 3.7 | N155: 2.136195996 | O155: 0.0007357410106 | P155: 0.01245867147
K156: 0.0007318024189 | L156: 0.01351299498 | M156: 3.8 | N156: 2.193931023 | O156: 0.0005056669086 | P156: 0.009337321413
K157: 0.0004979554215 | L157: 0.01002672826 | M157: 3.9 | N157: 2.25166605 | O157: 0.0003440813697 | P157: 0.006928351907
K158: 0.0003354626279 | L158: 0.007365867974 | M158: 4 | N158: 2.309401077 | O158: 0.0002318007506 | P158: 0.005089728581
K159: 0.0002237457937 | L159: 0.005357296345 | M159: 4.1 | N159: 2.367136104 | O159: 0.0001546057254 | P159: 0.003701829088
K160: 0.0001477483602 | L160: 0.003857664602 | M160: 4.2 | N160: 2.424871131 | O160: =(1/(O$76*SQRT(2*O$77)))*EXP(-1*($N160-O$75)^2/(O$76*O$76*2)) -> 0.0001020923881 | P160: 0.002665601101
K161: 9.659341372e-05 | L161: 0.002750174915 | M161: 4.3 | N161: 2.482606158 | O161: 6.674491864e-05 | P161: 0.001900338687
K162: 6.252150377e-05 | L162: 0.001941123746 | M162: 4.4 | N162: 2.540341184 | O162: 4.320162754e-05 | P162: 0.001341293795
K163: 4.006529739e-05 | L163: 0.001356448105 | M163: 4.5 | N163: 2.598076211 | O163: 2.768465169e-05 | P163: 0.0009372897688
K164: 2.541934652e-05 | L164: 0.0009384479704 | M164: 4.6 | N164: 2.655811238 | O164: 1.756447101e-05 | P164: 0.0006484565667
K165: 1.59667839e-05 | L165: 0.0006427976357 | M165: 4.7 | N165: 2.713546265 | O165: 1.103286085e-05 | P165: 0.0004441656449
K166: 9.929504306e-06 | L166: 0.0004359085598 | M166: 4.8 | N166: 2.771281292 | O166: 6.86117129e-06 | P166: 0.0003012077142
K167: 6.113567966e-06 | L167: 0.0002926668808 | M167: 4.9 | N167: 2.829016319 | O167: 4.22440393e-06 | P167: 0.0002022293901
K168: 3.726653172e-06 | L168: 0.0001945399571 | M168: 5 | N168: 2.886751346 | O168: 2.575073736e-06 | P168: 0.000134424834
K169: 2.249055967e-06 | L169: 0.000128026864 | M169: 5.1 | N169: 2.944486373 | O169: 1.554071357e-06 | P169: 8.846506501e-05
K170: 1.343812278e-06 | L170: 8.341621022e-05 | M170: 5.2 | N170: 3.0022214 | O170: 9.285585598e-07 | P170: 5.763962521e-05
K171: 7.949393615e-07 | L171: 5.380923991e-05 | M171: 5.3 | N171: 3.059956427 | O171: 5.492937972e-07 | P171: 3.718155516e-05
K172: 4.655715716e-07 | L172: 3.436531389e-05 | M172: 5.4 | N172: 3.117691454 | O172: 3.217045083e-07 | P172: 2.374602978e-05
K173: 2.699578503e-07 | L173: 2.172905443e-05 | M173: 5.5 | N173: 3.175426481 | O173: 1.865377158e-07 | P173: 1.501452236e-05
K174: 1.549753136e-07 | L174: 1.360248939e-05 | M174: 5.6 | N174: 3.233161507 | O174: 1.070861283e-07 | P174: 9.399161003e-06
K175: 8.808179196e-08 | L175: 8.430493907e-06 | M175: 5.7 | N175: 3.290896534 | O175: 6.08634876e-08 | P175: 5.825372644e-06
K176: 4.956405319e-08 | L176: 5.173026428e-06 | M176: 5.8 | N176: 3.348631561 | O176: 3.42481808e-08 | P176: 3.574500732e-06
K177: 2.761242457e-08 | L177: 3.142631293e-06 | M177: 5.9 | N177: 3.406366588 | O177: 1.907986228e-08 | P177: 2.171521451e-06
K178: 1.522997974e-08 | L178: 1.890162834e-06 | M178: 6 | N178: 3.464101615 | O178: 1.05237378e-08 | P178: 1.306080401e-06
K179: 8.316702457e-09 | L179: 1.125542927e-06 | M179: 6.1 | N179: 3.521836642 | O179: 5.746744083e-09 | P179: 7.777369925e-07
K180: 4.496349462e-09 | L180: 6.635626948e-07 | M180: 6.2 | N180: 3.579571669 | O180: 3.106924866e-09 | P180: 4.585140578e-07
K181: 2.406722436e-09 | L181: 3.873101839e-07 | M181: 6.3 | N181: 3.637306696 | O181: 1.663017042e-09 | P181: 2.676268051e-07
K182: 1.27540763e-09 | L182: 2.238169256e-07 | M182: 6.4 | N182: 3.695041723 | O182: 8.812917484e-10 | P182: 1.546548767e-07
K183: 6.691586091e-10 | L183: 1.280512996e-07 | M183: 6.5 | N183: 3.75277675 | O183: 4.62380769e-10 | P183: 8.848194967e-08
K184: 3.475891281e-10 | L184: 7.25324104e-08 | M184: 6.6 | N184: 3.810511777 | O184: 2.401800204e-10 | P184: 5.011904688e-08
K185: 1.787558871e-10 | L185: 4.067591069e-08 | M185: 6.7 | N185: 3.868246804 | O185: 1.235182264e-10 | P185: 2.810657834e-08
K186: 9.101470764e-11 | L186: 2.25839298e-08 | M186: 6.8 | N186: 3.92598183 | O186: 6.289009801e-11 | P186: 1.560523124e-08
K187: 4.587962487e-11 | L187: 1.241420179e-08 | M187: 6.9 | N187: 3.983716857 | O187: 3.170228395e-11 | P187: 8.578068179e-09
K188: 2.289734846e-11 | L188: 6.756085562e-09 | M188: 7 | N188: 4.041451884 | O188: 1.582179986e-11 | P188: 4.66837607e-09
K189: 1.13137762e-11 | L189: 3.640227588e-09 | M189: 7.1 | N189: 4.099186911 | O189: 7.817686971e-12 | P189: 2.515354669e-09
K190: 5.534610072e-12 | L190: 1.941864792e-09 | M190: 7.2 | N190: 4.156921938 | O190: =(1/(O$76*SQRT(2*O$77)))*EXP(-1*($N190-O$75)^2/(O$76*O$76*2)) -> 3.824350799e-12 | P190: 1.341805849e-09
K191: 2.680547637e-12 | L191: 1.025572799e-09 | M191: 7.3 | N191: 4.214656965 | O191: 1.852227052e-12 | P191: 7.086588037e-10
K192: 1.285337225e-12 | L192: 5.362546298e-10 | M192: 7.4 | N192: 4.272391992 | O192: 8.881529828e-13 | P192: 3.705456745e-10
K193: 6.101936678e-13 | L193: 2.776084435e-10 | M193: 7.5 | N193: 4.330127019 | O193: 4.216366845e-13 | P193: 1.918241862e-10
K194: 2.867975009e-13 | L194: 1.422824526e-10 | M194: 7.6 | N194: 4.387862046 | O194: 1.981737173e-13 | P194: 9.831550988e-11
K195: 1.334566085e-13 | L195: 7.219831626e-11 | M195: 7.7 | N195: 4.445597073 | O195: 9.221695488e-14 | P195: 4.988819174e-11
K196: 6.148396413e-14 | L196: 3.62710269e-11 | M196: 7.8 | N196: 4.5033321 | O196: 4.248469978e-14 | P196: 2.506285518e-11
K197: 2.804404738e-14 | L197: 1.804054646e-11 | M197: 7.9 | N197: 4.561067127 | O197: 1.93781086e-14 | P197: 1.246580651e-11
K198: 1.266416555e-14 | L198: 8.883755162e-12 | M198: 8 | N198: 4.618802154 | O198: 8.75079021e-15 | P198: 6.138570868e-12
K199: 5.661995517e-15 | L199: 4.331123108e-12 | M199: 8.1 | N199: 4.67653718 | O199: 3.912372651e-15 | P199: 2.992755389e-12
K200: 2.506221887e-15 | L200: 2.090554678e-12 | M200: 8.2 | N200: 4.734272207 | O200: 1.731769999e-15 | P200: 1.444548821e-12
K201: 1.09831413e-15 | L201: 9.990324357e-13 | M201: 8.3 | N201: 4.792007234 | O201: 7.589222123e-16 | P201: 6.903197234e-13
K202: 4.765304735e-16 | L202: 4.726663681e-13 | M202: 8.4 | N202: 4.849742261 | O202: 3.292769813e-16 | P202: 3.266069296e-13
K203: 2.046971713e-16 | L203: 2.214047174e-13 | M203: 8.5 | N203: 4.907477288 | O203: 1.414433502e-16 | P203: 1.52988069e-13
K204: 8.705426622e-17 | L204: 1.026776909e-13 | M204: 8.6 | N204: 4.965212315 | O204: 6.015347933e-17 | P204: 7.094908298e-14
K205: 3.665433396e-17 | L205: 4.714355969e-14 | M205: 8.7 | N205: 5.022947342 | O205: 2.532771587e-17 | P205: 3.257564812e-14
K206: 1.527979968e-17 | L206: 2.143017441e-14 | M206: 8.8 | N206: 5.080682369 | O206: 1.055816279e-17 | P206: 1.480799976e-14
K207: =O207/R$77 -> 1.396943943e-21 | L207: =P207/R$77 -> 4.657974193e-18 | M207: 9.8 | N207: =M207*O$76 -> 5.658032638 | O207: 9.65271919e-22 | P207: 3.218605664e-18
K208: 4.698354861e-26 | L208: 3.724551369e-22 | M208: 10.8 | N208: 6.235382907 | O208: 3.246508233e-26 | P208: 2.573621415e-22
K209: 5.813238885e-31 | L209: 1.095610982e-26 | M209: 11.8 | N209: 6.812733176 | O209: 4.016880048e-31 | P209: 7.570543691e-27
K210: 2.646037791e-36 | L210: 1.185616688e-31 | M210: 12.8 | N210: 7.390083446 | O210: =(1/(O$76*SQRT(2*O$77)))*EXP(-1*($N210-O$75)^2/(O$76*O$76*2)) -> 1.828381152e-36 | P210: 8.192472586e-32
K211: 4.430772312e-42 | L211: 4.719953808e-37 | M211: 13.8 | N211: 7.967433715 | O211: 3.061611823e-42 | P211: 3.261432853e-37
K212: 2.729407257e-48 | L212: 6.91252494e-43 | M212: 14.8 | N212: 8.544783984 | O212: 1.885988478e-48 | P212: 4.776473849e-43
K213: 6.185328487e-55 | L213: 3.724270287e-49 | M213: 15.8 | N213: 9.122134253 | O213: 4.27398961e-55 | P213: 2.57342719e-49
K214: 5.156591327e-62 | L214: 7.381611618e-56 | M214: 16.8 | N214: 9.699484522 | O214: 3.563144269e-62 | P214: 5.100607256e-56
K215: 1.581496288e-69 | L215: 5.38228522e-63 | M215: 17.8 | N215: 10.27683479 | O215: 1.09279543e-69 | P215: 3.719096108e-63
K216: 1.784346355e-77 | L216: 1.443735859e-70 | M216: 18.8 | N216: 10.85418506 | O216: 1.232962453e-77 | P216: 9.976045855e-71
K217: 7.406203779e-86 | L217: 1.424670058e-78 | M217: 19.8 | N217: 11.43153533 | O217: 5.117600151e-86 | P217: 9.844303397e-79
K218: 1.130882998e-94 | L218: 5.171855332e-87 | M218: 20.8 | N218: 12.0088856 | O218: 7.814269189e-95 | P218: 3.573691518e-87
K219: 6.352507846e-104 | L219: 6.906912557e-96 | M219: 21.8 | N219: 12.58623587 | O219: 4.389508591e-104 | P219: 4.772595759e-96
K220: 1.312738625e-113 | L220: 3.393337569e-105 | M220: 22.8 | N220: 13.16358614 | O220: 9.070870293e-114 | P220: 2.344756554e-105
K221: 9.979685046e-124 | L221: 6.133038502e-115 | M221: 23.8 | N221: 13.74093641 | O221: 6.895845594e-124 | P221: 4.237857842e-115
K222: 2.791006996e-134 | L222: 4.077836744e-125 | M222: 24.8 | N222: 14.31828668 | O222: 1.928553177e-134 | P222: 2.817737475e-125
K223: 2.871511322e-145 | L223: 9.974462382e-136 | M223: 25.8 | N223: 14.89563695 | O223: 1.984180724e-145 | P223: 6.892236795e-136
K224: 1.086840113e-156 | L224: 8.97541786e-147 | M224: 26.8 | N224: 15.47298721 | O224: 7.509938008e-157 | P224: 6.20190872e-147
K225: 1.513304428e-168 | L225: 2.971155452e-158 | M225: 27.8 | N225: 16.05033748 | O225: 1.045675653e-168 | P225: 2.053033652e-158
K226: 7.751619831e-181 | L226: 3.618275163e-170 | M226: 28.8 | N226: 16.62768775 | O226: 5.356278601e-181 | P226: 2.5001858e-170
